[Event "Baku Open 2024"]
[Site "Baku"]
[Date "2024.07.01"]
[Round "3.28"]
[White "Valiyev, Shahin"]
[Black "Shuvalova, Polina"]
[Result "0-1"]
[ECO "C92"]
[WhiteElo "2244"]
[BlackElo "2467"]
[Annotator "TA"]
[PlyCount "76"]
[EventDate "2024.06.29"]
[EventType "swiss"]
[EventCountry "AZE"]
[SourceTitle "playchess.com"]
[Source "ChessBase"]
[SourceQuality "1"]
[TimeControl "5400+30"]

{[%evp 27,76,0,55,30,34,12,18,7,21,8,35,36,23,23,41,0,0,0,2,6,1,10,28,-10,-12,-15,-13,-14,-4,-9,0,0,0,-12,0,0,0,0,0,-17,-23,-52,-53,-473,-478,-471,-472,-547,-546,-583,-560]} 1. e4 {[%emt 0:00:04]} e5 {[%emt 0:00:04]} 2. Nf3 {[%emt 0:00:07]} Nc6 {[%emt 0:00:04]} 3. Bb5 {[%emt 0:00:13]} a6 {[%emt 0:00:07]} 4. Ba4 {[%emt 0:00:06]} Nf6 {[%emt 0:00:09]} 5. O-O {[%emt 0:00:18]} Be7 {[%emt 0:00:11]} 6. Re1 {[%emt 0:00:41]} b5 {[%emt 0:00:13]} 7. Bb3 {[%emt 0:00:04]} O-O {[%emt 0:00:08]} 8. c3 {[%emt 0:00:09]} d6 {[%emt 0:00:17]} 9. h3 {[%emt 0:00:05]} Bb7 {[%emt 0:00:07]} 10. d4 {[%emt 0:04:30]} Re8 {[%emt 0:01:18]} 11. Ng5 {[%emt 0:03:18]} Rf8 {[%emt 0:00:08]} 12. Nf3 {[%emt 0:00:05]} Re8 {[%emt 0:03:03]} 13. Ng5 {[%emt 0:00:29]} Rf8 {[%emt 0:00:06]} 14. Nf3 {[%emt 0:00:06]} h6 {[%emt 0:00:19]} (14... Re8 $11) 15. a3 {[%emt 0:00:51]} Re8 {[%emt 0:01:00]} 16. Ba2 {[%emt 0:01:14]} Bf8 {[%emt 0:01:48]} 17. d5 {[%emt 0:00:31] The position is equal.} Ne7 {[%emt 0:10:58]} 18. c4 {[%emt 0:00:27]} Qd7 {[%emt 0:05:57]} 19. Nc3 {[%emt 0:03:35]} c6 {[%emt 0:03:24]} 20. dxc6 {[%emt 0:14:10]} Bxc6 {[%emt 0:01:53]} 21. cxb5 {[%emt 0:22:34]} axb5 {[%emt 0:00:33]} 22. Nh2 {[%emt 0:04:20]} d5 {[%emt 0:10:56]} 23. Nf3 {[%emt 0:02:45]} Ng6 {[%emt 0:07:00] [#] Hoping for ...d4.} 24. exd5 {[%emt 0:01:43]} Bb7 {[%emt 0:00:23]} 25. Be3 {[%emt 0:01:14]} b4 {[%emt 0:04:22]} 26. axb4 {[%emt 0:05:28]} Bxb4 {[%emt 0:00:25]} 27. Bb3 {[%emt 0:02:30]} Rxa1 {[%emt 0:10:28]} 28. Qxa1 {[%emt 0:00:20]} Bxc3 {[%emt 0:00:05]} (28... Bxd5 $2 29. Nxd5 Bxe1 (29... Nxd5 $2 30. Rd1 $18) 30. Nxf6+ gxf6 31. Nxe1 $18 (31. Qxe1 Rb8 $18)) 29. bxc3 {[%emt 0:00:30]} Bxd5 {[%emt 0:00:25]} 30. Rd1 {[%emt 0:13:22] [#] Black must now prevent Bxd5.} Qb7 {[%emt 0:00:57]} 31. Bxd5 {[%emt 0:00:53]} Nxd5 {[%emt 0:00:03]} 32. Qa4 {[%emt 0:00:44]} Re7 {[%emt 0:10:18][%cal Oe5e4]} 33. Qg4 {[%emt 0:15:46]} Qb3 {[%emt 0:14:48]} (33... Nxc3 $2 34. Rd8+ Nf8 (34... Kh7 35. Ng5+ hxg5 36. Qh5#) 35. Bc5 (35. Bxh6 f6 $18) 35... Ne2+ 36. Kh2 $18) 34. Nd2 {[%emt 0:03:40]} Qc2 {[%emt 0:01:52][%cal Of7f5] aiming for ...f5!} (34... Qxc3 35. Ne4 Qb3 (35... Nxe3 36. Rd8+) 36. Nc5 $11) 35. Ne4 $2 {[%emt 0:00:32][%mdl 8192] Now White is beyond hope.} ({Better is} 35. Nf1 $15 f5 (35... Nxc3 36. Rd8+ Kh7 37. Ng3 $11) 36. Qf3 Nxc3 37. Rd8+ Kh7 38. Bd2) 35... f5 $1 $19 {[%emt 0:04:21] Black is clearly winning.} (35... Nxc3 36. Rd8+ (36. Qc8+ Kh7 $18) (36. Qc8+ Kh7 $18)) 36. Qh5 {[%emt 0:00:01]} Nxe3 {[%emt 0:01:23]} (36... Nxc3 $2 {is the wrong capture.} 37. Rd8+ (37. Nxc3 Re6 $18) 37... Nf8 38. Rxf8+ (38. Qxf5 Qb1+ 39. Kh2 Rf7 $18) 38... Kxf8 39. Qxf5+ Kg8 40. Nf6+ Kf7 41. Qxc2 $18) (36... Qxe4 $2 37. Qxg6 Kh8 38. Kh1 $18) 37. Rd8+ {[%emt 0:00:58]} Nf8 {[%emt 0:00:38] ...Qc1+ would now be deadly.} 38. Nf6+ {[%emt 0:00:31]} gxf6 {[%emt 0:00:11] Weighted Error Value: White=0.45/Black=0.07 (flawless) .  Loses game:     	White=1     	---        Inaccurate:     	White=3     	Black=1      OK:         	White=7     	Black=13     Best:        	---       	Black=2      Strong:       	---       	Black=1} 0-1

[Event "Baku Open 2024"]
[Site "Baku"]
[Date "2024.07.01"]
[Round "3.29"]
[White "Asgarov, Mushfig"]
[Black "Jubin Jimmy"]
[Result "0-1"]
[ECO "C55"]
[WhiteElo "2227"]
[BlackElo "2452"]
[Annotator "TA"]
[PlyCount "74"]
[EventDate "2024.06.29"]
[EventType "swiss"]
[EventCountry "AZE"]
[SourceTitle "playchess.com"]
[Source "ChessBase"]
[SourceQuality "1"]
[TimeControl "5400+30"]

{[%evp 9,74,30,35,39,38,31,37,-6,7,0,37,31,41,41,40,0,-4,-79,-90,-90,-54,-58,-59,-54,-55,-53,-40,-43,-49,-50,-44,-68,-52,-75,-57,-97,-97,-128,-37,-33,-26,-44,-24,-51,-47,-53,-60,-114,-114,-418,-418,-612,-606,-1466,-1439,-1299,-1192,-1115,-1071,-1057,-1050,-29980,-11764,-29990,-29990,-29993,-29994]} 1. e4 {[%emt 0:12:07]} e5 {[%emt 0:00:36]} 2. Nf3 {[%emt 0:00:47]} Nc6 {[%emt 0:00:06]} 3. Bc4 {[%emt 0:01:20]} Nf6 {[%emt 0:00:11]} 4. d3 {[%emt 0:00:43]} h6 {[%emt 0:01:54]} 5. c3 {[%emt 0:01:45]} d6 {[%emt 0:02:25]} 6. a4 {[%emt 0:05:18]} g6 {[%emt 0:03:55]} 7. b4 {[%emt 0:02:26]} Bg7 {[%emt 0:04:32]} 8. Qb3 {[%emt 0:02:00] White is slightly better.} O-O {[%emt 0:07:18]} 9. O-O {[%emt 0:05:02]} Bg4 {[%emt 0:14:27]} 10. Nbd2 {[%emt 0:06:06]} Nh5 {[%emt 0:05:10]} 11. h3 {[%emt 0:06:30]} Bd7 {[%emt 0:02:12]} 12. Kh2 {[%emt 0:03:48]} (12. Qd1 {simplifies} Nf4 13. Re1 Be6 14. Bxe6 Nxe6 15. Nc4) 12... Nf4 {[%emt 0:05:31]} 13. g3 {[%emt 0:32:21]} (13. Re1 $11) 13... Nxh3 $17 {[%emt 0:13:32]} 14. Kg2 {[%emt 0:04:06]} Ng5 {[%emt 0:10:30]} 15. Nxg5 {[%emt 0:03:53]} Qxg5 {[%emt 0:00:06]} 16. Nf3 {[%emt 0:03:18]} Qf6 {[%emt 0:01:46]} 17. Be3 {[%emt 0:01:52]} Rae8 {[%emt 0:04:44]} 18. Rh1 {[%emt 0:01:06][%cal Ob3d1]} g5 {[%emt 0:00:42]} 19. Nd2 {[%emt 0:01:18]} Ne7 {[%emt 0:02:34]} 20. f3 {[%emt 0:02:26][%cal Ob4b5]} a6 {[%emt 0:03:13] [#] Strongly threatening ...b5.} 21. b5 {[%emt 0:00:59]} Ra8 {[%emt 0:01:06]} 22. b6 {[%emt 0:01:14]} c6 {[%emt 0:00:48][%cal Od6d5]} 23. d4 {[%emt 0:00:23]} Rad8 {[%emt 0:01:26]} (23... Qg6 $17 {[%cal Od6d5] aiming for ...d5!} 24. Rae1 Rad8) 24. dxe5 $1 $15 {[%emt 0:00:54]} dxe5 {[%emt 0:00:01]} 25. Rad1 {[%emt 0:00:14]} Ng6 {[%emt 0:01:40]} 26. Bc5 {[%emt 0:00:33]} Rfe8 {[%emt 0:00:22]} 27. Be2 {[%emt 0:00:57]} Bf8 {[%emt 0:00:56]} 28. Bxf8 {[%emt 0:00:11]} ({Better is} 28. Bf2 $15) 28... Rxf8 {[%emt 0:00:40]} (28... Nxf8 29. Qc2) 29. Rxh6 $2 {[%emt 0:00:49][%mdl 8192] White does not recover from this.} (29. Nf1 $17) 29... Nh4+ $19 {[%emt 0:00:55]} ({Don't do} 29... Nf4+ 30. gxf4 Qxh6 31. Rh1 $19) 30. gxh4 {[%emt 0:00:29]} (30. Rxh4 $142 gxh4 31. Qb1) 30... Qxh6 {[%emt 0:00:06]} 31. hxg5 {[%emt 0:00:27]} Qh3+ {[%emt 0:00:52]} 32. Kf2 {[%emt 0:00:20]} Qh4+ {[%emt 0:00:15]} 33. Ke3 {[%emt 0:00:29]} Qf4+ {[%emt 0:00:16]} 34. Kf2 {[%emt 0:00:09]} Be6 {[%emt 0:00:09]} (34... Qxg5 $2 35. Rg1 $18) 35. Nc4 {[%emt 0:01:08]} Kg7 {[%emt 0:00:30] [#] ( -> ...Bxc4)} (35... Qxg5 $2 {is the wrong capture.} 36. Rg1 $18) 36. Qb4 {[%emt 0:00:29]} Rxd1 {[%emt 0:00:17]} (36... Qxg5 $2 {loses.} 37. Rg1 $18) 37. Bxd1 {[%emt 0:00:04]} Rh8 {[%emt 0:00:23] Weighted Error Value: White=0.70/Black=0.11 (very precise) .  Loses game:     	White=1     	---        Mistake:       	White=3     	Black=1      Inaccurate:     	White=6     	Black=2      OK:         	White=5     	Black=12     Best:        	White=1     	Black=2      Strong:       	White=1     	---} 0-1

[Event "Baku Open 2024"]
[Site "Baku"]
[Date "2024.07.01"]
[Round "3.30"]
[White "Guliev, Sarhan"]
[Black "Salimova, Nurgyul"]
[Result "0-1"]
[ECO "E53"]
[WhiteElo "2224"]
[BlackElo "2436"]
[Annotator "TA"]
[PlyCount "84"]
[EventDate "2024.06.29"]
[EventType "swiss"]
[EventCountry "AZE"]
[SourceTitle "playchess.com"]
[Source "ChessBase"]
[SourceQuality "1"]
[TimeControl "5400+30"]

{[%evp 17,84,8,19,0,10,0,6,0,0,0,0,0,0,0,0,0,-8,-35,-21,-30,-23,-27,-17,-20,-16,-16,-19,-43,-43,-39,-46,-40,-41,-50,-57,-77,-73,-93,-92,-100,-57,-56,-54,-70,-73,-112,-61,-122,-74,-79,-75,-112,-114,-206,-205,-408,-398,-420,-439,-438,-434,-1346,-1320,-1250,-971,-1752,-120,-1654,-1577]} 1. d4 {[%emt 0:02:41]} Nf6 {[%emt 0:00:08]} 2. c4 {[%emt 0:00:09]} e6 {[%emt 0:00:17]} 3. Nc3 {[%emt 0:00:39]} Bb4 {[%emt 0:00:13]} 4. e3 {[%emt 0:00:34]} O-O {[%emt 0:00:57]} 5. Bd3 {[%emt 0:00:42]} d5 {[%emt 0:01:05]} 6. Nf3 {[%emt 0:05:51]} b6 {[%emt 0:01:44]} 7. O-O {[%emt 0:01:45]} c5 {[%emt 0:02:17]} 8. cxd5 {[%emt 0:07:29]} exd5 {[%emt 0:00:42]} 9. Ne5 {[%emt 0:12:53]} Bb7 {[%emt 0:09:41]} 10. Bd2 {[%emt 0:04:43]} Nbd7 {[%emt 0:11:48]} 11. Nxd7 {[%emt 0:10:16]} Qxd7 {[%emt 0:01:02]} 12. dxc5 {[%emt 0:01:42] The position is equal.} Bxc5 {[%emt 0:04:55]} 13. Qa4 {[%emt 0:10:11]} Qe7 {[%emt 0:06:53]} 14. Qh4 {[%emt 0:03:05]} Ne4 {[%emt 0:02:37]} 15. Qxe7 {[%emt 0:00:08]} Bxe7 {[%emt 0:00:03][%cal Bc5e7,Be7f6,Bf6e5,Be5d6,Bd6b8][%mdl 32]} 16. Rfd1 {[%emt 0:05:47]} Bf6 {[%emt 0:02:51]} 17. Rac1 {[%emt 0:02:16]} Nxd2 {[%emt 0:02:37]} 18. Rxd2 {[%emt 0:00:08]} d4 {[%emt 0:00:20]} 19. Nd1 {[%emt 0:02:54][%cal Bc3d1,Bd1b2,Bb2c4][%mdl 32]} Rad8 {[%emt 0:04:57]} 20. Kf1 {[%emt 0:03:32]} Be5 {[%emt 0:04:08]} 21. g3 {[%emt 0:00:34]} g5 {[%emt 0:09:39]} 22. e4 {[%emt 0:10:48] White is weak on the dark squares} g4 {[%emt 0:00:43]} 23. b3 {[%emt 0:00:42]} Rfe8 {[%emt 0:03:37]} 24. Nb2 {[%emt 0:00:59]} Re7 {[%emt 0:03:18]} 25. Rdc2 {[%emt 0:01:00]} Bd6 {[%emt 0:01:44] This pair of bishops is nice.} 26. Re1 {[%emt 0:03:34]} Kg7 {[%emt 0:02:47]} 27. Rec1 {[%emt 0:03:06]} h5 {[%emt 0:01:04] Black is more active.} 28. Nc4 {[%emt 0:01:21]} Bb8 {[%emt 0:00:46]} 29. Re1 {[%emt 0:00:38]} f6 {[%emt 0:01:02]} 30. Nb2 {[%emt 0:00:48] [#]} h4 $1 {[%emt 0:00:57]} 31. Rd1 {[%emt 0:03:17]} (31. Ree2 Rde8) 31... Rde8 {[%emt 0:03:20]} ({Black should try} 31... hxg3 $17 32. fxg3 Bxe4 33. Bxe4 Rxe4) 32. Rdc1 {[%emt 0:00:20]} ({Better is} 32. Re2 $15) 32... Re6 {[%emt 0:11:40]} (32... Kg6 $142 33. Rd2 Bxe4 34. Bxe4+ Rxe4) 33. Rd1 $17 {[%emt 0:00:28]} h3 {[%emt 0:00:45][%cal Of6f5]} 34. Rc4 {[%emt 0:01:26]} R8e7 {[%emt 0:00:38][%cal Of6f5]} ({Don't play} 34... Bxe4 35. Bxe4 Rxe4 36. Rcxd4 $11) 35. Rc2 {[%emt 0:00:26]} (35. Kg1 $17 {was necessary.}) 35... f5 $19 {[%emt 0:00:22]} 36. e5 {[%emt 0:00:34]} (36. Bc4 Rxe4 (36... Bxe4 $2 37. Nd3 $19) 37. Nd3) 36... Rxe5 {[%emt 0:00:14]} 37. f4 {[%emt 0:00:40]} gxf3 {[%emt 0:01:57]} 38. Nc4 {[%emt 0:00:45]} R5e6 {[%emt 0:01:52]} 39. Bxf5 {[%emt 0:00:24]} (39. Nb2 $142) 39... Re2 {[%emt 0:00:06][%cal Ob8g3] [#] ( -> ...Bxg3!)} 40. Rxd4 {[%emt 0:00:21]} Kf6 {[%emt 0:01:19] Hoping for ...Re1+.} 41. Bd3 {[%emt 0:00:42]} Re1+ {[%emt 0:00:33]} 42. Kf2 {[%emt 0:00:02]} Rh1 {[%emt 0:00:15] Weighted Error Value: White=0.63/Black=0.20 (precise) .  Mistake:       	White=4     	Black=2      Inaccurate:     	White=3     	Black=1      OK:         	White=10    	Black=13     Best:        	---       	Black=2} 0-1

[Event "Baku Open 2024"]
[Site "Baku"]
[Date "2024.07.01"]
[Round "3.31"]
[White "Amangeldy, Ernur"]
[Black "Aradhya, Garg"]
[Result "1/2-1/2"]
[ECO "D32"]
[WhiteElo "2223"]
[BlackElo "2418"]
[Annotator "TA"]
[PlyCount "113"]
[EventDate "2024.06.29"]
[EventType "swiss"]
[EventCountry "AZE"]
[SourceTitle "playchess.com"]
[Source "ChessBase"]
[SourceQuality "1"]
[TimeControl "5400+30"]

{[%evp 10,113,169,137,193,191,188,191,206,196,234,231,250,250,262,170,147,137,145,141,145,153,141,150,139,135,137,118,135,132,131,97,133,57,67,0,0,0,0,0,0,0,0,0,0,0,0,-14,0,0,0,-42,-45,-49,-8,-92,0,0,0,0,0,0,0,0,41,45,51,53,46,52,41,52,66,41,41,0,0,0,0,0,27,27,27,27,27,27,31,12,18,8,75,8,111,8,8,8,8,8,8,8,8,8,8,8,16,0]} 1. d4 {[%emt 0:00:56]} d5 {[%emt 0:00:01]} 2. c4 {[%emt 0:01:06]} e6 {[%emt 0:00:03]} 3. Nc3 {[%emt 0:01:15]} c5 {[%emt 0:05:54]} 4. cxd5 {[%emt 0:04:51]} cxd4 {[%emt 0:00:02]} 5. Qa4+ {[%emt 0:04:18]} Qd7 {[%emt 0:11:53]} 6. Nb5 $1 {[%emt 0:11:27] D32: Tarrasch Defence: Sidelines and lines without g3.} (6. Qxd4 $6 Nc6 7. Qd2 (7. dxc6 $2 Qxd4 8. g3 Qb6 $19) 7... exd5 8. Nxd5 Bc5 $14) 6... exd5 $146 {[%emt 0:10:59]} (6... Na6 $16) ({Predecessor:} 6... Na6 7. dxe6 fxe6 8. Bd2 Nf6 9. Nf3 Nd5 10. Ne5 Nc5 11. Qc4 Qd8 12. Qxd4 Be7 13. e4 {1-0 Kryakvin,D (2471)-Tarielashvili,D (1551) Yalta Yialos op 2023 (2)}) 7. Nc7+ $18 {[%emt 0:07:45]} Kd8 {[%emt 0:00:11]} 8. Qxd7+ {[%emt 0:00:06]} (8. Qxd4 $2 {is the wrong capture.} Nc6 (8... Qxc7 $2 9. a3 $19) (8... Kxc7 $2 9. a3 $19) 9. Qd1 Bb4+ (9... Qxc7 $2 10. a3 $19) 10. Bd2 Qxc7 $19 (10... Bxd2+ $2 11. Qxd2 Qxc7 12. Qxd5+ Ke7 13. Qc5+ Qd6 14. Qxd6+ Kxd6 15. Nf3 $19)) 8... Bxd7 {[%emt 0:00:08]} 9. Nxa8 {[%emt 0:00:07]} Nc6 {[%emt 0:00:32]} 10. Bf4 {[%emt 0:03:07]} Bb4+ {[%emt 0:08:48]} 11. Kd1 {[%emt 0:07:56]} Nf6 {[%emt 0:00:08]} 12. f3 {[%emt 0:01:57]} Nh5 {[%emt 0:03:07]} 13. Bg5+ {[%emt 0:00:36]} Kc8 {[%emt 0:01:41] [#]} 14. g4 $1 {[%emt 0:02:32]} h6 {[%emt 0:00:23]} 15. Bd2 {[%emt 0:07:43]} Nf6 {[%emt 0:13:11]} 16. Bxb4 {[%emt 0:02:03]} Nxb4 {[%emt 0:00:02]} 17. Nh3 {[%emt 0:04:33]} Kb8 {[%emt 0:02:15]} 18. Nf4 {[%emt 0:00:14]} Kxa8 {[%emt 0:02:39]} 19. h4 {[%emt 0:00:43]} Kb8 {[%emt 0:10:57]} 20. Bg2 {[%emt 0:02:59]} Bb5 {[%emt 0:00:27]} 21. Kd2 {[%emt 0:07:49]} ({Better is} 21. g5 $16 Nd7 22. gxh6 Rxh6 23. a3) 21... Re8 $14 {[%emt 0:05:20]} 22. g5 {[%emt 0:06:43]} (22. Bf1 $14) 22... Nh5 $1 $11 {[%emt 0:00:30]} 23. Nd3 {[%emt 0:02:17]} Re3 {[%emt 0:10:19]} 24. Bf1 {[%emt 0:05:37]} Nxd3 {[%emt 0:03:25]} 25. exd3 {[%emt 0:00:14]} Ng3 {[%emt 0:00:26]} (25... Rxf3 26. Be2 Rf2 27. gxh6 (27. Ke1 Rxe2+ 28. Kxe2 Ng3+ 29. Kd2 hxg5 $18) 27... gxh6 28. Raf1 Rxe2+ 29. Kxe2 Ng3+ 30. Kd2 $18) 26. Rg1 {[%emt 0:02:32]} Rxf3 {[%emt 0:01:29]} 27. gxh6 {[%emt 0:03:19]} gxh6 {[%emt 0:00:01]} 28. Rc1 {[%emt 0:00:05]} a5 {[%emt 0:02:46]} 29. Be2 {[%emt 0:01:39]} Re3 {[%emt 0:00:26]} 30. Rxg3 {[%emt 0:00:06]} Rxg3 {[%emt 0:00:05]} 31. Rf1 $1 {[%emt 0:00:02]} Rg7 {[%emt 0:02:43]} 32. Rf6 {[%emt 0:00:42] [#]} (32. Rf5 $1 $11) 32... Rh7 {[%emt 0:00:30]} ({Black should try} 32... Bd7 $1 $17 33. Bf3 Rg6 34. Rxf7 Bc6) 33. Bh5 {[%emt 0:01:15]} Kc7 {[%emt 0:00:49]} 34. Bxf7 {[%emt 0:00:56]} Bc6 {[%emt 0:00:04]} 35. Bg6 {[%emt 0:01:24]} Rg7 {[%emt 0:00:25]} 36. h5 {[%emt 0:00:11]} Kd8 {[%emt 0:00:22]} 37. Rf8+ {[%emt 0:01:56]} Ke7 {[%emt 0:00:07]} 38. Rh8 {[%emt 0:00:05]} Kf6 {[%emt 0:01:07]} 39. Rxh6 {[%emt 0:00:12]} Kg5 {[%emt 0:00:15]} 40. Rh8 {[%emt 0:00:12]} Re7 {[%emt 0:00:15]} 41. Rf8 {[%emt 0:00:37]} Bd7 {[%emt 0:01:16]} 42. b3 {[%emt 0:01:44]} Bg4 {[%emt 0:05:29]} 43. Rf2 {[%emt 0:00:38]} Re3 {[%emt 0:00:00]} 44. Rg2 {[%emt 0:01:16]} Re7 {[%emt 0:00:00]} 45. h6 {[%emt 0:01:38]} Kxg6 {[%emt 0:00:00]} 46. Rxg4+ {[%emt 0:00:03]} Kxh6 {[%emt 0:00:00]} 47. Rxd4 {[%emt 0:00:02]} Rd7 $1 {[%emt 0:00:20]} 48. Rg4 {[%emt 0:02:23]} d4 {[%emt 0:00:35]} 49. Re4 {[%emt 0:00:44]} Rd6 {[%emt 0:00:14]} (49... Kg5 $11) 50. Ke2 {[%emt 0:01:01]} (50. Re5 $16) 50... Rc6 {[%emt 0:01:01]} (50... Kg5 $11 {remains equal.}) 51. Rxd4 {[%emt 0:00:57]} ({White should play} 51. Kf3 $16) 51... Rc2+ $11 {[%emt 0:00:06]} 52. Ke3 {[%emt 0:00:01]} Rxa2 {[%emt 0:00:01]} 53. Rd6+ {[%emt 0:00:00]} (53. Ra4 $5 Rb2 $8 54. Rxa5 Rxb3 55. Kd4 $11) 53... Kg5 {[%emt 0:00:27]} 54. Rb6 {[%emt 0:00:06]} a4 {[%emt 0:00:30]} 55. b4 {[%emt 0:00:33]} a3 {[%emt 0:00:11]} 56. Rxb7 {[%emt 0:00:06]} Rb2 {[%emt 0:00:17]} 57. Ke4 {[%emt 0:01:04]} 1/2-1/2

[Event "Baku Open 2024"]
[Site "Baku"]
[Date "2024.07.01"]
[Round "3.32"]
[White "Serikbay, Assel"]
[Black "Ahmad, Khagan"]
[Result "1-0"]
[ECO "B33"]
[WhiteElo "2217"]
[BlackElo "2401"]
[Annotator "TA"]
[PlyCount "77"]
[EventDate "2024.06.29"]
[EventType "swiss"]
[EventCountry "AZE"]
[SourceTitle "playchess.com"]
[Source "ChessBase"]
[SourceQuality "1"]
[TimeControl "5400+30"]

{[%evp 28,77,7,12,0,13,6,8,12,4,8,9,26,25,53,72,55,79,256,256,581,560,603,599,566,571,1027,987,1031,919,952,804,29965,29961,29961,29966,29969,29972,29973,29975,29975,29976,29976,29977,29975,29973,29963,599,599,599,637,629]} 1. e4 {[%emt 0:00:04]} c5 {[%emt 0:00:17]} 2. Nf3 {[%emt 0:00:06]} Nc6 {[%emt 0:00:03]} 3. d4 {[%emt 0:00:08]} cxd4 {[%emt 0:00:03]} 4. Nxd4 {[%emt 0:00:06]} Nf6 {[%emt 0:00:03]} 5. Nc3 {[%emt 0:00:11]} e5 {[%emt 0:00:04]} 6. Ndb5 {[%emt 0:00:10]} d6 {[%emt 0:00:06]} 7. Bg5 {[%emt 0:00:12]} a6 {[%emt 0:00:05]} 8. Na3 {[%emt 0:00:09]} b5 {[%emt 0:00:04]} 9. Nd5 {[%emt 0:00:20]} Be7 {[%emt 0:00:05]} 10. Bxf6 {[%emt 0:00:16]} Bxf6 {[%emt 0:00:08]} 11. c3 {[%emt 0:00:20]} Bg5 {[%emt 0:00:06]} 12. Nc2 {[%emt 0:00:53]} Rb8 {[%emt 0:00:42]} 13. a4 {[%emt 0:02:09]} bxa4 {[%emt 0:00:12]} 14. Ncb4 {[%emt 0:00:28]} Nxb4 {[%emt 0:00:58]} 15. Nxb4 {[%emt 0:00:43]} Bd7 {[%emt 0:00:38] Inhibits Nc6. ...a5 is the strong threat.} 16. Bxa6 {[%emt 0:07:59][%cal Oa6d3]} Qa5 {[%emt 0:01:42] Threatens to win with ...Rxb4.} 17. Qxd6 {[%emt 0:16:32]} Rb6 {[%emt 0:00:08] The position is equal.} 18. Qd3 {[%emt 0:00:11] aiming for 0-0.} Be7 $132 {[%emt 0:04:12][%mdl 2048] Black is not keeping still. A strong pair of Bishops.} 19. Nd5 {[%emt 0:03:28]} (19. Rd1 Be6 20. O-O O-O $15 (20... Bxb4 21. Qd8#)) 19... Rxb2 {[%emt 0:01:33]} (19... Qxa6 $2 20. Nc7+ Kd8 21. Nxa6 $18) (19... Rxa6 $2 20. Qxa6 Qxa6 21. Nc7+ Kf8 22. Nxa6 $18) 20. O-O {[%emt 0:19:18][%cal Od3g3]} Bc5 {[%emt 0:06:42] [#]} 21. Qg3 $1 {[%emt 0:07:20][%csl LRe5,LRg7]} Kf8 {[%emt 0:00:19]} 22. Bc4 {[%emt 0:00:35]} f6 {[%emt 0:00:49] [#]} (22... h5 $16 {was necessary.}) 23. Rad1 $1 $18 {[%emt 0:07:47][%cal Od5f6] Strongly threatening Nxf6!} Rb7 $2 {[%emt 0:53:11] [#]} (23... Bb5 {is more resistant.} 24. Bxb5 Rxb5) 24. Kh1 $1 {[%emt 0:05:29] Black must now prevent f4.} Be6 {[%emt 0:04:01]} 25. f4 {[%emt 0:01:28]} exf4 {[%emt 0:14:58]} 26. Qxf4 {[%emt 0:00:11]} Be7 {[%emt 0:00:15]} 27. e5 {[%emt 0:05:31][%cal Re5f6]} Bxd5 {[%emt 0:02:20]} 28. Rxd5 {[%emt 0:01:04]} Qc7 {[%emt 0:02:54] Black is weak on the light squares} 29. Qd4 {[%emt 0:04:16][%cal Re5f6] exf6 would now be deadly.} Qb6 {[%emt 0:03:41]} 30. Qg4 {[%emt 0:01:55]} Qc6 {[%emt 0:04:02]} 31. exf6 {[%emt 0:01:59]} gxf6 {[%emt 0:00:01]} 32. Rg5 {[%emt 0:00:24]} Ke8 {[%emt 0:00:02]} 33. Bd5 {[%emt 0:01:08]} Qc7 {[%emt 0:00:56]} 34. Rg8+ {[%emt 0:03:29]} Rxg8 {[%emt 0:00:01]} 35. Qxg8+ {[%emt 0:00:06]} Kd7 {[%emt 0:00:03]} 36. Qe6+ {[%emt 0:00:04]} Ke8 {[%emt 0:00:15]} 37. Qc6+ {[%emt 0:01:42]} (37. Rxf6 $2 {gets mated.} Rb1+) (37. Bxb7 $142 Qxb7 38. Qg8+ (38. Rxf6 $2 {leads to mate.} Qb1+) 38... Kd7 39. Rd1+ (39. Qxh7 Qd5 $18) 39... Kc7 40. Qxh7 (40. Qg3+ Kc8 $18) 40... Kb8 41. Rb1 Qxb1+ 42. Qxb1+ Kc7 43. Qe4) 37... Qxc6 {[%emt 0:00:08]} 38. Bxc6+ {[%emt 0:00:05]} Rd7 {[%emt 0:00:01]} 39. Rd1 {[%emt 0:00:11] Black got outplayed after the opening.   Weighted Error Value: White=0.28 (precise) /Black=0.60.  Loses game:     	---       	Black=1      Mistake:       	---       	Black=1      Inaccurate:     	---       	Black=2      OK:         	White=8     	Black=6      Best:        	White=1     	Black=1      Strong:       	White=3     	---} 1-0